[Event "*** Titled Tuesday 3|2 Blitz (Early)"]
[Site "Chess.com"]
[Date "2017.01.03"]
[Round "2"]
[White "FrankieJay"]
[Black "rubhani"]
[Result "1/2-1/2"]
[WhiteElo "2294"]
[BlackElo "2402"]
[TimeControl "180+2"]
[EndTime "11:26:00 PST"]
[Termination "Game drawn - insufficient material"]

1. e4 {[%clk 0:03:02]} 1... c6 {[%clk 0:03:00.7]} 2. d4 {[%clk 0:03:02.6]} 2...
d5 {[%clk 0:03:01.7]} 3. e5 {[%clk 0:03:03.7]} 3... Bf5 {[%clk 0:03:02]} 4. Nf3
{[%clk 0:03:04.9]} 4... e6 {[%clk 0:03:03]} 5. Be2 {[%clk 0:03:05.3]} 5... Nd7
{[%clk 0:03:03.1]} 6. O-O {[%clk 0:03:06.2]} 6... h6 {[%clk 0:03:04.4]} 7. Nbd2
{[%clk 0:03:07.2]} 7... Ne7 {[%clk 0:03:05.3]} 8. a4 {[%clk 0:03:08.5]} 8... a6
{[%clk 0:03:05.2]} 9. a5 {[%clk 0:03:04.5]} 9... c5 {[%clk 0:03:05.8]} 10. dxc5
{[%clk 0:02:50.9]} 10... Nc6 {[%clk 0:03:05.8]} 11. Nb3 {[%clk 0:02:45.8]} 11...
Nxc5 {[%clk 0:03:06.3]} 12. Nbd4 {[%clk 0:02:42.1]} 12... Be4 {[%clk 0:03:01.6]}
13. c3 {[%clk 0:02:34.9]} 13... Be7 {[%clk 0:02:59.6]} 14. b4 {[%clk 0:02:35.6]}
14... Nd7 {[%clk 0:02:55.6]} 15. Nxc6 {[%clk 0:02:32.9]} 15... bxc6 {[%clk
0:02:56.6]} 16. Nd4 {[%clk 0:02:34.1]} 16... Qc7 {[%clk 0:02:52.4]} 17. f3
{[%clk 0:02:32.2]} 17... Bh7 {[%clk 0:02:49.8]} 18. f4 {[%clk 0:02:32.9]} 18...
O-O {[%clk 0:02:49.5]} 19. Be3 {[%clk 0:02:32.4]} 19... c5 {[%clk 0:02:48.8]}
20. bxc5 {[%clk 0:02:26.8]} 20... Nxc5 {[%clk 0:02:49.6]} 21. Rf3 {[%clk
0:01:26.9]} 21... Ne4 {[%clk 0:02:47.1]} 22. Bd3 {[%clk 0:01:17.3]} 22... Qxc3
{[%clk 0:02:39.8]} 23. Ne2 {[%clk 0:01:07.5]} 23... Qc7 {[%clk 0:02:37]} 24. Bb6
{[%clk 0:01:08.3]} 24... Bc5+ {[%clk 0:02:36.9]} 25. Bxc5 {[%clk 0:00:56.6]}
25... Qxc5+ {[%clk 0:02:37.7]} 26. Kf1 {[%clk 0:00:57.9]} 26... Rfc8 {[%clk
0:02:32.9]} 27. g4 {[%clk 0:00:55]} 27... Qc7 {[%clk 0:02:14.5]} 28. Kg2 {[%clk
0:00:55]} 28... Rf8 {[%clk 0:02:09.3]} 29. Nd4 {[%clk 0:00:49.2]} 29... Qc5
{[%clk 0:02:05.6]} 30. Nb3 {[%clk 0:00:45.5]} 30... Qb4 {[%clk 0:01:57.2]} 31.
f5 {[%clk 0:00:44.7]} 31... Rab8 {[%clk 0:01:50.6]} 32. Bxa6 {[%clk 0:00:20.7]}
32... Nc3 {[%clk 0:01:42.5]} 33. Qc2 {[%clk 0:00:21.9]} 33... Qxg4+ {[%clk
0:01:03.3]} 34. Rg3 {[%clk 0:00:23.1]} 34... Qe4+ {[%clk 0:01:04.3]} 35. Qxe4
{[%clk 0:00:24.6]} 35... Nxe4 {[%clk 0:01:06.2]} 36. Rf3 {[%clk 0:00:26]} 36...
Bxf5 {[%clk 0:01:06.7]} 37. Nd4 {[%clk 0:00:26.9]} 37... Bg4 {[%clk 0:01:07.1]}
38. Rb3 {[%clk 0:00:26.5]} 38... Nc5 {[%clk 0:01:04.8]} 39. Rxb8 {[%clk
0:00:24.8]} 39... Rxb8 {[%clk 0:01:06.2]} 40. Bb5 {[%clk 0:00:25.8]} 40... f6
{[%clk 0:00:58.7]} 41. exf6 {[%clk 0:00:20.8]} 41... e5 {[%clk 0:00:59.7]} 42.
Nc6 {[%clk 0:00:19.4]} 42... Rxb5 {[%clk 0:01:00.4]} 43. a6 {[%clk 0:00:21.3]}
43... Nxa6 {[%clk 0:00:58.6]} 44. f7+ {[%clk 0:00:22.8]} 44... Kxf7 {[%clk
0:00:53.6]} 45. Nxe5+ {[%clk 0:00:24.7]} 45... Ke6 {[%clk 0:00:52.9]} 46. Nxg4
{[%clk 0:00:22.2]} 46... Nc5 {[%clk 0:00:53.9]} 47. Ra7 {[%clk 0:00:22.3]} 47...
Rb7 {[%clk 0:00:53.5]} 48. Ra8 {[%clk 0:00:23.4]} 48... Ne4 {[%clk 0:00:54.2]}
49. Re8+ {[%clk 0:00:21.3]} 49... Re7 {[%clk 0:00:54.4]} 50. Rd8 {[%clk
0:00:21.7]} 50... Rd7 {[%clk 0:00:55]} 51. Re8+ {[%clk 0:00:22.7]} 51... Kf5
{[%clk 0:00:56.1]} 52. Ne3+ {[%clk 0:00:23.7]} 52... Kf4 {[%clk 0:00:57.2]} 53.
Nc2 {[%clk 0:00:18.5]} 53... d4 {[%clk 0:00:58]} 54. Rf8+ {[%clk 0:00:17.3]}
54... Nf6 {[%clk 0:00:58.3]} 55. Kf2 {[%clk 0:00:16.7]} 55... d3 {[%clk
0:00:59.4]} 56. Ne3 {[%clk 0:00:17.6]} 56... d2 {[%clk 0:01:00.3]} 57. Nd1
{[%clk 0:00:18.9]} 57... Ke4 {[%clk 0:00:55]} 58. Ke2 {[%clk 0:00:20.3]} 58...
Nd5 {[%clk 0:00:52.8]} 59. Re8+ {[%clk 0:00:20.1]} 59... Re7 {[%clk 0:00:52.3]}
60. Rxe7+ {[%clk 0:00:21]} 60... Nxe7 {[%clk 0:00:53.3]} 61. Kxd2 {[%clk
0:00:22.9]} 61... Kf3 {[%clk 0:00:54.6]} 62. Ne3 {[%clk 0:00:22.2]} 62... g5
{[%clk 0:00:53.3]} 63. Kd3 {[%clk 0:00:21.6]} 63... h5 {[%clk 0:00:54.3]} 64.
Kd2 {[%clk 0:00:22.3]} 64... h4 {[%clk 0:00:54.9]} 65. Kd3 {[%clk 0:00:21.2]}
65... Ng6 {[%clk 0:00:55.7]} 66. Kd2 {[%clk 0:00:21.1]} 66... Ne5 {[%clk
0:00:55.5]} 67. Nf1 {[%clk 0:00:09.7]} 67... Kg2 {[%clk 0:00:48.1]} 68. Ke2
{[%clk 0:00:10.7]} 68... Nf3 {[%clk 0:00:49.3]} 69. h3 {[%clk 0:00:10.6]} 69...
Ng1+ {[%clk 0:00:49.7]} 70. Ke1 {[%clk 0:00:11.3]} 70... Nxh3 {[%clk 0:00:50.2]}
71. Ne3+ {[%clk 0:00:12.9]} 71... Kg3 {[%clk 0:00:50.8]} 72. Kf1 {[%clk
0:00:13.3]} 72... Kf3 {[%clk 0:00:50.9]} 73. Nf5 {[%clk 0:00:14.1]} 73... Nf4
{[%clk 0:00:50.1]} 74. Kg1 {[%clk 0:00:14.7]} 74... h3 {[%clk 0:00:48.2]} 75.
Kh2 {[%clk 0:00:16.2]} 75... g4 {[%clk 0:00:49.3]} 76. Nh4+ {[%clk 0:00:17.7]}
76... Kf2 {[%clk 0:00:49.3]} 77. Nf5 {[%clk 0:00:18.2]} 77... Ne2 {[%clk
0:00:47.2]} 78. Ng3 {[%clk 0:00:19.6]} 78... Nd4 {[%clk 0:00:46.1]} 79. Ne4+
{[%clk 0:00:20.2]} 79... Kf3 {[%clk 0:00:44.9]} 80. Ng5+ {[%clk 0:00:21.3]}
80... Kf4 {[%clk 0:00:46]} 81. Nxh3+ {[%clk 0:00:22.4]} 81... Kf3 {[%clk
0:00:42.6]} 82. Ng1+ {[%clk 0:00:21.4]} 82... Kf2 {[%clk 0:00:41.1]} 83. Nh3+
{[%clk 0:00:19.6]} 83... Kf3 {[%clk 0:00:41]} 84. Ng5+ {[%clk 0:00:20.5]} 84...
Kf4 {[%clk 0:00:41.6]} 85. Nh3+ {[%clk 0:00:21.9]} 85... Kf5 {[%clk 0:00:42.7]}
86. Nf2 {[%clk 0:00:22.1]} 86... Ne2 {[%clk 0:00:41.7]} 87. Nxg4 {[%clk
0:00:22.7]} 87... Kxg4 {[%clk 0:00:43.1]} 1/2-1/2

[Event "*** Titled Tuesday 3|2 Blitz (Early)"]
[Site "Chess.com"]
[Date "2017.01.03"]
[Round "2"]
[White "FlySooHigh"]
[Black "johnathan113"]
[Result "1-0"]
[WhiteElo "2474"]
[BlackElo "2297"]
[TimeControl "180+2"]
[EndTime "11:26:39 PST"]
[Termination "FlySooHigh won by resignation"]

1. e4 {[%clk 0:03:02]} 1... g6 {[%clk 0:02:59.7]} 2. d4 {[%clk 0:03:02.6]} 2...
Nf6 {[%clk 0:03:01]} 3. Nc3 {[%clk 0:03:02.3]} 3... d5 {[%clk 0:03:01.8]} 4. e5
{[%clk 0:03:02.4]} 4... Ne4 {[%clk 0:03:03.1]} 5. Bd3 {[%clk 0:03:01.2]} 5...
Nxc3 {[%clk 0:03:03.9]} 6. bxc3 {[%clk 0:03:03.1]} 6... c5 {[%clk 0:03:05.7]} 7.
Nf3 {[%clk 0:02:59.2]} 7... Nc6 {[%clk 0:03:06.9]} 8. O-O {[%clk 0:02:59.3]}
8... Qa5 {[%clk 0:03:03.6]} 9. Bd2 {[%clk 0:02:29.6]} 9... c4 {[%clk 0:03:04.6]}
10. Be2 {[%clk 0:02:30.6]} 10... Bg4 {[%clk 0:03:05.7]} 11. Ng5 {[%clk
0:02:24.5]} 11... Bxe2 {[%clk 0:03:03.5]} 12. Qxe2 {[%clk 0:02:26.4]} 12... h6
{[%clk 0:03:00.2]} 13. Nh3 {[%clk 0:02:14.5]} 13... e6 {[%clk 0:02:59.7]} 14. g4
{[%clk 0:01:59.8]} 14... Ba3 {[%clk 0:02:51.7]} 15. Rab1 {[%clk 0:01:58.5]}
15... O-O-O {[%clk 0:02:51.7]} 16. f4 {[%clk 0:01:54.2]} 16... h5 {[%clk
0:02:45]} 17. Ng5 {[%clk 0:01:55.1]} 17... Rdf8 {[%clk 0:02:40.4]} 18. f5 {[%clk
0:01:52.8]} 18... gxf5 {[%clk 0:02:34.5]} 19. gxf5 {[%clk 0:01:52.7]} 19... Be7
{[%clk 0:02:20.6]} 20. f6 {[%clk 0:01:36.4]} 20... Bd8 {[%clk 0:02:07.7]} 21.
Rb2 {[%clk 0:01:36.6]} 21... Bb6 {[%clk 0:02:01.5]} 22. Kh1 {[%clk 0:01:35.3]}
22... Qa3 {[%clk 0:01:41.8]} 23. Rfb1 {[%clk 0:01:35.2]} 23... h4 {[%clk
0:01:43.2]} 24. Qg4 {[%clk 0:01:27.9]} 24... Rfg8 {[%clk 0:01:40.8]} 25. h3
{[%clk 0:01:10.3]} 25... Rg6 {[%clk 0:01:29.4]} 26. Qf4 {[%clk 0:01:07]} 26...
Qf8 {[%clk 0:01:26.8]} 27. Rg1 {[%clk 0:01:01.9]} 27... Rhg8 {[%clk 0:01:26.4]}
28. Qxh4 {[%clk 0:00:49.5]} 28... Qa3 {[%clk 0:01:27.3]} 29. Rbb1 {[%clk
0:00:31.2]} 29... Nd8 {[%clk 0:01:11.5]} 30. Qh7 {[%clk 0:00:19.5]} 30... Qf8
{[%clk 0:01:00.2]} 31. Qh4 {[%clk 0:00:20.1]} 31... Qa3 {[%clk 0:00:51.8]} 32.
Qh7 {[%clk 0:00:20.7]} 32... Qf8 {[%clk 0:00:51.9]} 33. Qh4 {[%clk 0:00:21.3]}
33... Rh8 {[%clk 0:00:52.9]} 34. Qg4 {[%clk 0:00:20.3]} 34... Qa3 {[%clk
0:00:51.9]} 35. Qf3 {[%clk 0:00:17.7]} 35... Qxa2 {[%clk 0:00:41.8]} 36. Rbc1
{[%clk 0:00:18.5]} 36... Qa3 {[%clk 0:00:39.6]} 37. Kh2 {[%clk 0:00:17.6]} 37...
Qf8 {[%clk 0:00:39.7]} 38. Rg3 {[%clk 0:00:17.9]} 38... Rhg8 {[%clk 0:00:39.2]}
39. Rcg1 {[%clk 0:00:18.7]} 39... Qa3 {[%clk 0:00:40]} 40. Qd1 {[%clk
0:00:17.8]} 40... Qf8 {[%clk 0:00:35.9]} 41. h4 {[%clk 0:00:18.6]} 41... Rh8
{[%clk 0:00:36.2]} 42. Rh3 {[%clk 0:00:18.2]} 42... Rgh6 {[%clk 0:00:35.7]} 43.
h5 {[%clk 0:00:16.3]} 43... Rg8 {[%clk 0:00:29.4]} 44. Rh4 {[%clk 0:00:16]}
44... Ba5 {[%clk 0:00:24.8]} 45. Nh3 {[%clk 0:00:16.5]} 45... Rgh8 {[%clk
0:00:20.1]} 46. Bxh6 {[%clk 0:00:14.7]} 46... Qxh6 {[%clk 0:00:22]} 47. Qf3
{[%clk 0:00:10.8]} 47... Qd2+ {[%clk 0:00:20]} 48. Rg2 {[%clk 0:00:11.8]} 48...
Qe1 {[%clk 0:00:21.2]} 49. Qg3 {[%clk 0:00:09.8]} 49... Bxc3 {[%clk 0:00:19.4]}
50. h6 {[%clk 0:00:07.9]} 50... Qxg3+ {[%clk 0:00:19]} 51. Kxg3 {[%clk
0:00:08.1]} 51... Be1+ {[%clk 0:00:20.7]} 52. Nf2 {[%clk 0:00:10]} 52... a5
{[%clk 0:00:18.1]} 53. h7 {[%clk 0:00:11.2]} 53... a4 {[%clk 0:00:18.6]} 54. Kf3
{[%clk 0:00:11]} 54... a3 {[%clk 0:00:19.3]} 55. Rg1 {[%clk 0:00:12]} 55... Bc3
{[%clk 0:00:20.6]} 56. Rg8 {[%clk 0:00:12.4]} 56... Rxh7 {[%clk 0:00:18.1]} 57.
Rxh7 {[%clk 0:00:12.9]} 57... a2 {[%clk 0:00:20]} 58. Rg1 {[%clk 0:00:13.8]}
58... a1=Q {[%clk 0:00:16.6]} 59. Rxa1 {[%clk 0:00:14.4]} 59... Bxa1 {[%clk
0:00:18.5]} 60. Rh4 {[%clk 0:00:15.9]} 60... Nc6 {[%clk 0:00:18.5]} 61. Ke3
{[%clk 0:00:16.5]} 61... b5 {[%clk 0:00:18.5]} 62. Nd1 {[%clk 0:00:15.9]} 62...
b4 {[%clk 0:00:18.9]} 63. Rg4 {[%clk 0:00:16.6]} 63... Kd7 {[%clk 0:00:19.3]}
64. Rh4 {[%clk 0:00:17.4]} 64... Kc7 {[%clk 0:00:20.1]} 65. Rg4 {[%clk
0:00:18.3]} 65... Kb6 {[%clk 0:00:19.9]} 66. Rh4 {[%clk 0:00:18]} 66... b3
{[%clk 0:00:21.1]} 67. cxb3 {[%clk 0:00:18.7]} 67... cxb3 {[%clk 0:00:23]} 68.
Kd3 {[%clk 0:00:20.5]} 68... Kb5 {[%clk 0:00:19.1]} 69. Nc3+ {[%clk 0:00:21.2]}
69... Kb4 {[%clk 0:00:19.1]} 70. Nb1 {[%clk 0:00:22.4]} 70... Bb2 {[%clk
0:00:16.1]} 71. Rg4 {[%clk 0:00:22.6]} 71... Ba1 {[%clk 0:00:17]} 72. Rh4 {[%clk
0:00:23.4]} 72... Bb2 {[%clk 0:00:17.9]} 73. Rg4 {[%clk 0:00:24.1]} 73... Ka4
{[%clk 0:00:18.8]} 74. Rh4 {[%clk 0:00:24.6]} 74... Nb4+ {[%clk 0:00:20.2]} 75.
Kd2 {[%clk 0:00:23.6]} 75... Nc2 {[%clk 0:00:21.4]} 76. Kd3 {[%clk 0:00:23.6]}
76... Ne1+ {[%clk 0:00:20.6]} 77. Ke2 {[%clk 0:00:24.5]} 77... Nc2 {[%clk
0:00:19]} 78. Kd3 {[%clk 0:00:25.6]} 78... Kb4 {[%clk 0:00:19.5]} 79. Rg4 {[%clk
0:00:24.5]} 79... Ne1+ {[%clk 0:00:19.8]} 80. Ke2 {[%clk 0:00:25]} 80... Nc2
{[%clk 0:00:21.7]} 81. Kd3 {[%clk 0:00:26.2]} 81... Na3 {[%clk 0:00:16.8]} 82.
Nxa3 {[%clk 0:00:25.1]} 82... Kxa3 {[%clk 0:00:18.7]} 83. Rg7 {[%clk 0:00:25.8]}
83... Bc1 {[%clk 0:00:17.1]} 84. Rxf7 {[%clk 0:00:25.6]} 84... b2 {[%clk
0:00:17.7]} 85. Kc2 {[%clk 0:00:26.3]} 85... Kb4 {[%clk 0:00:17.4]} 86. Rb7+
{[%clk 0:00:26.8]} 86... Kc4 {[%clk 0:00:18.8]} 87. f7 {[%clk 0:00:28.2]} 87...
Bh6 {[%clk 0:00:20.4]} 88. Rb8 {[%clk 0:00:28.2]} 88... Kxd4 {[%clk 0:00:20.8]}
89. f8=Q {[%clk 0:00:28.3]} 89... Bxf8 {[%clk 0:00:21.9]} 90. Rxf8 {[%clk
0:00:30.2]} 90... Kxe5 {[%clk 0:00:23.8]} 91. Kxb2 {[%clk 0:00:31.7]} 91... Kd4
{[%clk 0:00:25.6]} 92. Re8 {[%clk 0:00:30.2]} 92... e5 {[%clk 0:00:27.5]} 93.
Kc2 {[%clk 0:00:31.5]} 93... Ke4 {[%clk 0:00:26.9]} 94. Kd2 {[%clk 0:00:32.2]}
94... d4 {[%clk 0:00:28.8]} 95. Re7 {[%clk 0:00:32.3]} 95... Kf3 {[%clk
0:00:29.8]} 96. Kd3 {[%clk 0:00:33.1]} 96... e4+ {[%clk 0:00:27.9]} 97. Rxe4
{[%clk 0:00:33.9]} 1-0

[Event "*** Titled Tuesday 3|2 Blitz (Early)"]
[Site "Chess.com"]
[Date "2017.01.03"]
[Round "3"]
[White "GMNeiksans"]
[Black "Kouzari"]
[Result "0-1"]
[WhiteElo "2631"]
[BlackElo "2405"]
[TimeControl "180+2"]
[EndTime "11:29:22 PST"]
[Termination "Kouzari won by resignation"]

1. e4 {[%clk 0:03:02]} 1... e6 {[%clk 0:03:01.2]} 2. d4 {[%clk 0:03:02.4]} 2...
d5 {[%clk 0:03:02.6]} 3. Nd2 {[%clk 0:03:03.5]} 3... c5 {[%clk 0:03:02.9]} 4.
Ngf3 {[%clk 0:03:03.8]} 4... cxd4 {[%clk 0:03:03.4]} 5. Nxd4 {[%clk 0:03:03.8]}
5... Nc6 {[%clk 0:03:04.6]} 6. Bb5 {[%clk 0:03:02.6]} 6... Bd7 {[%clk
0:03:05.3]} 7. Nxc6 {[%clk 0:03:02.9]} 7... bxc6 {[%clk 0:03:05.4]} 8. Bd3
{[%clk 0:03:03.5]} 8... Qc7 {[%clk 0:03:06.1]} 9. c4 {[%clk 0:03:02.8]} 9... Bd6
{[%clk 0:03:05.3]} 10. exd5 {[%clk 0:02:43.1]} 10... cxd5 {[%clk 0:03:05.7]} 11.
cxd5 {[%clk 0:02:44.2]} 11... exd5 {[%clk 0:03:07.6]} 12. Nf3 {[%clk 0:02:44.5]}
12... Ne7 {[%clk 0:03:06.8]} 13. O-O {[%clk 0:02:41]} 13... O-O {[%clk
0:03:08.3]} 14. Be3 {[%clk 0:02:40.5]} 14... Nf5 {[%clk 0:03:07.7]} 15. Bxf5
{[%clk 0:02:38.5]} 15... Bxf5 {[%clk 0:03:08.2]} 16. Qxd5 {[%clk 0:02:39.4]}
16... Be6 {[%clk 0:03:07.4]} 17. Qh5 {[%clk 0:02:38.3]} 17... f6 {[%clk
0:02:58]} 18. Rac1 {[%clk 0:02:30.5]} 18... Qf7 {[%clk 0:02:58.8]} 19. b3 {[%clk
0:02:30.7]} 19... Qxh5 {[%clk 0:02:58.5]} 0-1

[Event "*** Titled Tuesday 3|2 Blitz (Early)"]
[Site "Chess.com"]
[Date "2017.01.03"]
[Round "3"]
[White "johnathan113"]
[Black "Andrejkin"]
[Result "1-0"]
[WhiteElo "2309"]
[BlackElo "2176"]
[TimeControl "180+2"]
[EndTime "11:31:33 PST"]
[Termination "johnathan113 won by resignation"]

1. e4 {[%clk 0:03:02]} 1... e5 {[%clk 0:03:01.2]} 2. Nf3 {[%clk 0:03:02.8]} 2...
Nc6 {[%clk 0:03:02.1]} 3. d4 {[%clk 0:03:03.9]} 3... exd4 {[%clk 0:03:02.3]} 4.
Nxd4 {[%clk 0:03:05.8]} 4... Nf6 {[%clk 0:03:03.8]} 5. Nxc6 {[%clk 0:03:06.7]}
5... bxc6 {[%clk 0:03:05.7]} 6. e5 {[%clk 0:03:08.6]} 6... Qe7 {[%clk
0:03:07.3]} 7. Qe2 {[%clk 0:03:10.1]} 7... Nd5 {[%clk 0:03:08.9]} 8. h4 {[%clk
0:03:11.2]} 8... a5 {[%clk 0:03:01.6]} 9. Bg5 {[%clk 0:03:10]} 9... Qb4+ {[%clk
0:02:46.8]} 10. c3 {[%clk 0:03:09.9]} 10... Qb6 {[%clk 0:02:47.6]} 11. c4 {[%clk
0:02:51.1]} 11... h6 {[%clk 0:02:44.7]} 12. Bc1 {[%clk 0:02:48.7]} 12... Bb4+
{[%clk 0:02:46.3]} 13. Nd2 {[%clk 0:02:48.8]} 13... Nf4 {[%clk 0:02:44.1]} 14.
Qg4 {[%clk 0:02:46.2]} 14... Ne6 {[%clk 0:02:46]} 15. Bd3 {[%clk 0:02:38.6]}
15... Bxd2+ {[%clk 0:02:47.9]} 16. Bxd2 {[%clk 0:02:39.5]} 16... Qxb2 {[%clk
0:02:45.6]} 17. Rb1 {[%clk 0:02:30.1]} 17... Qxe5+ {[%clk 0:02:47]} 18. Be3
{[%clk 0:02:31.4]} 18... f5 {[%clk 0:02:42.4]} 19. Qg6+ {[%clk 0:02:27.2]} 19...
Ke7 {[%clk 0:02:40]} 20. Bxf5 {[%clk 0:02:18.8]} 20... Nf4 {[%clk 0:02:32.9]}
21. Qg4 {[%clk 0:02:18.8]} 21... g6 {[%clk 0:02:28.5]} 22. Bxg6 {[%clk
0:01:59.2]} 22... Nxg6 {[%clk 0:02:26.3]} 23. Qxg6 {[%clk 0:01:59.7]} 23... d6
{[%clk 0:02:27.3]} 24. O-O {[%clk 0:01:54.7]} 24... Ba6 {[%clk 0:02:26.3]} 25.
Rfe1 {[%clk 0:01:49.4]} 25... Kd7 {[%clk 0:02:22.8]} 26. Bxh6 {[%clk 0:01:35.7]}
26... Qd4 {[%clk 0:02:14.7]} 27. Qe6+ {[%clk 0:01:31.4]} 27... Kd8 {[%clk
0:02:13.5]} 28. Bg5+ {[%clk 0:01:33.3]} 1-0

[Event "*** Titled Tuesday 3|2 Blitz (Early)"]
[Site "Chess.com"]
[Date "2017.01.03"]
[Round "3"]
[White "Iball95"]
[Black "BjarkeSahl"]
[Result "1-0"]
[WhiteElo "2451"]
[BlackElo "2236"]
[TimeControl "180+2"]
[EndTime "11:33:08 PST"]
[Termination "Iball95 won by resignation"]

1. e4 {[%clk 0:03:02]} 1... c5 {[%clk 0:02:54.9]} 2. Nf3 {[%clk 0:03:02.5]} 2...
e6 {[%clk 0:02:56.2]} 3. g3 {[%clk 0:03:02.2]} 3... d5 {[%clk 0:02:52.3]} 4.
exd5 {[%clk 0:03:01.3]} 4... exd5 {[%clk 0:02:53.5]} 5. Bg2 {[%clk 0:03:02.5]}
5... Nf6 {[%clk 0:02:54.5]} 6. O-O {[%clk 0:03:03.5]} 6... Be7 {[%clk 0:02:55]}
7. d4 {[%clk 0:03:04.4]} 7... c4 {[%clk 0:02:45.4]} 8. b3 {[%clk 0:03:04.8]}
8... cxb3 {[%clk 0:02:46.2]} 9. axb3 {[%clk 0:03:05.8]} 9... O-O {[%clk
0:02:48.1]} 10. c4 {[%clk 0:03:07.4]} 10... Nc6 {[%clk 0:02:49.1]} 11. Nc3
{[%clk 0:03:07.9]} 11... Nb4 {[%clk 0:02:48.7]} 12. Ba3 {[%clk 0:03:03]} 12...
a5 {[%clk 0:02:48.9]} 13. Ne5 {[%clk 0:02:51.9]} 13... Bf5 {[%clk 0:02:47]} 14.
Bxb4 {[%clk 0:02:49.2]} 14... Bxb4 {[%clk 0:02:34.1]} 15. Nxd5 {[%clk
0:02:49.2]} 15... Nxd5 {[%clk 0:02:33.7]} 16. Bxd5 {[%clk 0:02:51.1]} 16... Qc7
{[%clk 0:02:17.8]} 17. Qf3 {[%clk 0:02:20.4]} 17... Bc8 {[%clk 0:02:18.3]} 18.
c5 {[%clk 0:02:10.9]} 18... Ra6 {[%clk 0:02:18.3]} 19. Nc4 {[%clk 0:01:55.7]}
19... Rf6 {[%clk 0:02:17.6]} 20. Qg2 {[%clk 0:01:55]} 20... Rd8 {[%clk
0:01:49.1]} 21. Nb6 {[%clk 0:01:51.1]} 21... Bg4 {[%clk 0:01:44.5]} 22. Bxb7
{[%clk 0:01:33.1]} 22... Rxd4 {[%clk 0:01:44.7]} 23. Nd5 {[%clk 0:01:33.1]}
23... Rxd5 {[%clk 0:01:46.1]} 24. Bxd5 {[%clk 0:01:34.6]} 24... Qxc5 {[%clk
0:01:33.1]} 25. Rac1 {[%clk 0:01:30.6]} 25... Qd6 {[%clk 0:01:30.3]} 26. h3
{[%clk 0:01:23.4]} 26... Bd7 {[%clk 0:01:30.7]} 27. Rfd1 {[%clk 0:01:14.8]}
27... Qe7 {[%clk 0:01:24.8]} 28. Qe4 {[%clk 0:00:56.3]} 28... Qd8 {[%clk
0:01:16.9]} 29. Bc6 {[%clk 0:00:53.4]} 1-0

[Event "*** Titled Tuesday 3|2 Blitz (Early)"]
[Site "Chess.com"]
[Date "2017.01.03"]
[Round "3"]
[White "PowerThinking2650"]
[Black "LonesomeGeorge1"]
[Result "1-0"]
[WhiteElo "2273"]
[BlackElo "2171"]
[TimeControl "180+2"]
[EndTime "11:33:36 PST"]
[Termination "PowerThinking2650 won by resignation"]

1. e4 {[%clk 0:03:02]} 1... c5 {[%clk 0:02:57.8]} 2. Nf3 {[%clk 0:03:02.5]} 2...
e6 {[%clk 0:02:58.9]} 3. d4 {[%clk 0:03:03.3]} 3... cxd4 {[%clk 0:03:00.8]} 4.
Nxd4 {[%clk 0:03:04.8]} 4... Nc6 {[%clk 0:03:02.4]} 5. Nb5 {[%clk 0:03:04.9]}
5... d6 {[%clk 0:03:01.5]} 6. c4 {[%clk 0:03:05.4]} 6... Nf6 {[%clk 0:02:59.7]}
7. N1c3 {[%clk 0:03:05.6]} 7... Be7 {[%clk 0:03:00.2]} 8. Bf4 {[%clk 0:03:02.1]}
8... Ne5 {[%clk 0:02:45.8]} 9. Bxe5 {[%clk 0:02:49.4]} 9... dxe5 {[%clk
0:02:44.6]} 10. Qxd8+ {[%clk 0:02:49.6]} 10... Bxd8 {[%clk 0:02:31.5]} 11. Nd6+
{[%clk 0:02:42.1]} 11... Ke7 {[%clk 0:02:31.6]} 12. O-O-O {[%clk 0:02:41]} 12...
Bb6 {[%clk 0:02:25.6]} 13. f3 {[%clk 0:02:30.2]} 13... Rd8 {[%clk 0:02:10.2]}
14. Nxc8+ {[%clk 0:02:28.7]} 14... Rdxc8 {[%clk 0:02:03.6]} 15. Kc2 {[%clk
0:02:23.8]} 15... Rc6 {[%clk 0:01:52.8]} 16. b4 {[%clk 0:02:20.8]} 16... Bd4
{[%clk 0:01:41.5]} 17. Nb5 {[%clk 0:02:17.8]} 17... Be3 {[%clk 0:01:38.8]} 18.
Be2 {[%clk 0:01:57.3]} 18... a6 {[%clk 0:01:38]} 19. Nc3 {[%clk 0:01:58.1]}
19... Rac8 {[%clk 0:01:19]} 20. Kb3 {[%clk 0:01:57.7]} 20... R6c7 {[%clk
0:01:13.8]} 21. c5 {[%clk 0:01:50.4]} 21... b6 {[%clk 0:00:48]} 22. Bxa6 {[%clk
0:01:49.9]} 22... Ra8 {[%clk 0:00:48]} 23. Nb5 {[%clk 0:01:25.2]} 23... Rd7
{[%clk 0:00:34.2]} 24. Rxd7+ {[%clk 0:01:23]} 24... Nxd7 {[%clk 0:00:23.8]} 25.
Bb7 {[%clk 0:01:23.8]} 25... Rb8 {[%clk 0:00:13.6]} 26. c6 {[%clk 0:01:24.9]}
26... Nf6 {[%clk 0:00:13.8]} 27. c7 {[%clk 0:01:22.7]} 1-0

[Event "*** Titled Tuesday 3|2 Blitz (Early)"]
[Site "Chess.com"]
[Date "2017.01.03"]
[Round "3"]
[White "bivark"]
[Black "ChristopherYoo"]
[Result "1-0"]
[WhiteElo "2360"]
[BlackElo "2065"]
[TimeControl "180+2"]
[EndTime "11:33:53 PST"]
[Termination "bivark won by resignation"]

1. e4 {[%clk 0:03:02]} 1... e5 {[%clk 0:03:00.1]} 2. Nf3 {[%clk 0:03:02.4]} 2...
Nc6 {[%clk 0:03:00]} 3. Bb5 {[%clk 0:03:02.6]} 3... Nf6 {[%clk 0:03:00.4]} 4.
O-O {[%clk 0:03:02.6]} 4... Bc5 {[%clk 0:03:00.8]} 5. Qe2 {[%clk 0:03:01]} 5...
d6 {[%clk 0:02:56.2]} 6. c3 {[%clk 0:02:59.1]} 6... Bd7 {[%clk 0:02:50.2]} 7.
Rd1 {[%clk 0:02:55.7]} 7... Bb6 {[%clk 0:02:21.3]} 8. d4 {[%clk 0:02:54.2]} 8...
Qe7 {[%clk 0:02:16.1]} 9. a4 {[%clk 0:02:15.1]} 9... a6 {[%clk 0:02:05.1]} 10.
Bxc6 {[%clk 0:02:07]} 10... Bxc6 {[%clk 0:02:02.6]} 11. d5 {[%clk 0:02:08.2]}
11... Bd7 {[%clk 0:02:00.8]} 12. a5 {[%clk 0:02:09.5]} 12... Ba7 {[%clk
0:01:59.7]} 13. Be3 {[%clk 0:02:10.5]} 13... Bxe3 {[%clk 0:01:41.2]} 14. Qxe3
{[%clk 0:02:12.4]} 14... O-O {[%clk 0:01:31.8]} 15. c4 {[%clk 0:02:12.7]} 15...
Rfb8 {[%clk 0:01:16.4]} 16. Nc3 {[%clk 0:02:12.4]} 16... b6 {[%clk 0:01:10.3]}
17. b4 {[%clk 0:02:02.7]} 17... bxa5 {[%clk 0:01:09.2]} 18. bxa5 {[%clk
0:02:03.9]} 18... Ng4 {[%clk 0:01:03]} 19. Qd2 {[%clk 0:01:59.6]} 19... Rb7
{[%clk 0:01:00.1]} 20. Rab1 {[%clk 0:02:00]} 20... Rab8 {[%clk 0:00:59.1]} 21.
Rxb7 {[%clk 0:02:00.8]} 21... Rxb7 {[%clk 0:00:59.8]} 22. Rb1 {[%clk 0:02:02.4]}
22... Rxb1+ {[%clk 0:00:58]} 23. Nxb1 {[%clk 0:02:04.3]} 23... Nf6 {[%clk
0:00:51.1]} 24. Nc3 {[%clk 0:02:04.2]} 24... Qd8 {[%clk 0:00:48.8]} 25. Qb2
{[%clk 0:02:04.7]} 25... Qc8 {[%clk 0:00:49.1]} 26. Nd2 {[%clk 0:02:02.4]} 26...
c6 {[%clk 0:00:41.8]} 27. Qb6 {[%clk 0:01:52.7]} 27... Kf8 {[%clk 0:00:27.3]}
28. f3 {[%clk 0:01:48.1]} 28... Ke7 {[%clk 0:00:24.2]} 29. c5 {[%clk 0:01:40.7]}
29... Ne8 {[%clk 0:00:21.4]} 30. Nc4 {[%clk 0:01:36.7]} 30... f5 {[%clk
0:00:16.8]} 31. cxd6+ {[%clk 0:01:30.5]} 31... Kf6 {[%clk 0:00:16.6]} 32. Qc5
{[%clk 0:01:26.6]} 1-0